bitfinex-derivatives/quotes_BTCF0:USTF0_20250709
["timestamp","ask_amount","ask_price","bid_price","bid_amount"]
[1752090535718,0.002,111570.0,111560.0,1.59603309]
[1752090536527,0.30348432,111590.0,111580.0,0.1791989]
[1752090536528,0.10744432,111590.0,111580.0,0.1791989]
[1752090536723,0.5399829,111590.0,111580.0,0.2591989]
[1752090536924,0.1791829,111590.0,111580.0,0.4189989]
[1752090537129,0.007,111600.0,111590.0,0.1791829]
[1752090537315,0.007,111600.0,111590.0,0.23884733]
[1752090537520,0.65441112,111600.0,111590.0,0.41803023]
[1752090537715,0.007,111600.0,111590.0,0.72413222]
[1752090537921,0.002,111610.0,111600.0,0.1791668]
[1752090538124,0.26875964,111660.0,111610.0,0.0447877]
[1752090538125,0.10723309,111620.0,111610.0,0.0447877]
[1752090538417,0.49386565,111630.0,111610.0,0.723695]
[1752090538722,1.96578669,111620.0,111610.0,0.279945]
[1752090538919,2.32658669,111620.0,111610.0,0.1]
[1752090539119,1.6239347,111620.0,111610.0,0.1]
[1752090539323,2.09193095,111620.0,111610.0,0.1]
[1752090539524,2.50577069,111620.0,111610.0,0.1]
[1752090539831,0.1791668,111600.0,111590.0,0.001]
[1752090540024,1.6681606,111600.0,111580.0,0.701296]
[1752090540332,1.6681718,111600.0,111590.0,0.3608]
[1752090540522,1.66637977,111600.0,111590.0,0.5699829]
[1752090540721,0.004,111610.0,111600.0,0.1791668]
[1752090540923,0.1791097,111640.0,111600.0,2.16463078]
[1752090541116,0.1791026,111640.0,111630.0,0.79220749]
[1752090541423,0.2018266,111650.0,111640.0,0.1791026]
[1752090541625,0.2238587,111650.0,111640.0,0.559]
[1752090541928,0.2238587,111650.0,111640.0,0.7381026]
[1752090542121,0.0290866,111650.0,111640.0,0.559]
[1752090542427,0.1790866,111650.0,111640.0,0.559]
[1752090542622,0.0895403,111660.0,111640.0,1.00039979]
[1752090542923,0.53750177,111680.0,111660.0,0.1790706]
[1752090542924,0.24348727,111680.0,111660.0,0.1790706]
[1752090543123,0.2705616,111680.0,111670.0,0.3608]
[1752090543316,0.1790545,111670.0,111660.0,0.0188706]
[1752090543524,0.1850866,111650.0,111640.0,0.3618]
[1752090543827,0.9061666,111650.0,111640.0,0.4018]
[1752090544130,0.9001666,111650.0,111640.0,0.4008]
[1752090544423,0.9001666,111650.0,111640.0,0.5499026]
[1752090544631,1.24201859,111650.0,111640.0,0.3708]
[1752090544821,0.9001666,111650.0,111640.0,0.3728]
[1752090545021,0.9011666,111650.0,111640.0,0.3727421]
[1752090545218,1.26575859,111650.0,111640.0,0.012]
[1752090545432,0.1791347,111620.0,111610.0,0.3608]
[1752090545622,1.24146669,111620.0,111610.0,0.4008]
[1752090545822,1.96340669,111620.0,111610.0,0.04]
[1752090546131,0.1791508,111610.0,111600.0,0.36259203]
[1752090546322,0.88214279,111610.0,111600.0,0.38259203]
[1752090546826,1.2604508,111610.0,111600.0,0.38259203]
[1752090547129,1.2604508,111610.0,111600.0,0.41259203]
[1752090547424,1.2614508,111610.0,111600.0,0.41959203]
[1752090547630,0.5185508,111610.0,111600.0,0.59875883]
[1752090547929,0.9001508,111610.0,111600.0,0.41959203]
[1752090548130,0.9001508,111610.0,111600.0,0.58899203]
[1752090548526,0.9001508,111610.0,111600.0,0.76815893]
[1752090549226,0.001,111610.0,111600.0,1.11001092]
[1752090549432,0.72056,111610.0,111600.0,1.11001092]
[1752090549630,0.001,111610.0,111600.0,1.11001092]
[1752090549835,0.2239076,111630.0,111620.0,0.1791348]
[1752090550130,1.0329194,111630.0,111620.0,0.2291348]
[1752090550331,0.2686962,111630.0,111620.0,0.5899348]
[1752090550530,0.3883852,111640.0,111630.0,0.1791187]
[1752090550728,0.71924,111640.0,111630.0,0.5003551]
[1752090551033,0.6142302,111650.0,111640.0,0.1791027]
[1752090551328,1.4632509,111660.0,111650.0,0.1790866]
[1752090551531,1.4632509,111660.0,111650.0,0.2090866]
[1752090551532,1.4039,111660.0,111650.0,0.2090866]
[1752090551733,0.3656477,111670.0,111660.0,0.1790706]
[1752090551932,1.0625677,111670.0,111660.0,0.1990706]
[1752090552233,0.3676325,111680.0,111670.0,0.1790545]
[1752090552532,1.07192,111680.0,111670.0,0.1990545]
[1752090552735,0.002,111680.0,111670.0,0.1990545]
[1752090553033,0.72068,111680.0,111670.0,0.3576545]
[1752090553235,0.1810385,111680.0,111670.0,0.3576545]
[1752090553433,0.8995185,111680.0,111670.0,0.3576545]
[1752090553624,0.9055185,111680.0,111670.0,0.1796]
[1752090553830,0.9055185,111680.0,111670.0,0.3786545]
[1752090554236,0.73148,111680.0,111670.0,1.08130649]
[1752090554427,0.73148,111680.0,111670.0,0.3786545]
[1752090554428,0.72948,111680.0,111670.0,0.3786545]
[1752090554735,0.002,111690.0,111680.0,0.1790385]
[1752090554937,0.002,111690.0,111680.0,0.3880385]
[1752090555332,0.002,111690.0,111680.0,0.7488385]
[1752090555536,0.002,111690.0,111680.0,1.11496049]
[1752090555743,0.00868876,111700.0,111690.0,0.1790225]
[1752090555934,0.00868876,111700.0,111690.0,1.09067449]
[1752090556434,0.18769526,111700.0,111690.0,0.72987449]
[1752090556633,0.18769526,111700.0,111690.0,0.209]
[1752090556929,0.18769526,111700.0,111690.0,0.04]
[1752090556930,0.30569736,111700.0,111690.0,0.04]
[1752090557132,1.38405736,111700.0,111690.0,0.2190225]
[1752090557330,0.37448876,111700.0,111690.0,0.58514449]
[1752090557533,0.1593,111720.0,111710.0,0.1789904]
[1752090557835,0.1593,111720.0,111710.0,0.90164239]
[1752090558134,0.1809744,111720.0,111710.0,0.5597904]
[1752090558332,0.1809744,111720.0,111710.0,0.7188904]
[1752090558534,0.68012639,111720.0,111710.0,0.02]
[1752090558729,1.75816639,111720.0,111710.0,0.02]
[1752090558931,1.91484639,111720.0,111710.0,0.02]
[1752090559137,0.8558744,111720.0,111710.0,0.02]
[1752090559331,0.8568744,111720.0,111710.0,0.02]
[1752090559931,0.0894984,111710.0,111690.0,0.9638208]
[1752090560136,1.0113514,111710.0,111700.0,0.1790065]
[1752090560333,1.0113514,111710.0,111700.0,0.02]
[1752090560533,1.35320339,111710.0,111700.0,0.02]
[1752090561134,1.35320339,111710.0,111680.0,0.44247951]
[1752090561135,0.2685277,111700.0,111680.0,0.9633557]
[1752090561335,1.6831477,111700.0,111690.0,0.1790226]
[1752090561545,1.6831477,111700.0,111690.0,0.2290226]
[1752090561839,0.88002,111700.0,111690.0,0.57087459]
[1752090562046,0.02348,111710.0,111700.0,0.1790066]
[1752090562235,2.42698219,111710.0,111700.0,0.04]
[1752090562438,2.40788219,111710.0,111700.0,0.041]
[1752090562640,2.76868219,111710.0,111700.0,0.041]
[1752090562836,2.76868219,111710.0,111700.0,0.04]
[1752090562837,2.84823873,111710.0,111700.0,0.04]
[1752090563037,2.76868219,111710.0,111700.0,0.04]
[1752090563238,1.33632219,111710.0,111700.0,0.04]
[1752090563436,2.05328219,111710.0,111700.0,0.04]
[1752090564149,2.16048376,111710.0,111700.0,0.04]
[1752090564446,2.05328219,111710.0,111700.0,0.04]
[1752090564648,2.05328219,111710.0,111690.0,0.1790224]
[1752090564844,0.44066003,111700.0,111690.0,0.06]
[1752090565046,0.79538003,111700.0,111690.0,0.2390226]
[1752090565241,0.81886003,111700.0,111690.0,0.2390226]
[1752090565846,1.17966003,111700.0,111690.0,0.2390226]
[1752090566246,1.09972,111700.0,111690.0,0.2390226]
[1752090566448,1.17973032,111700.0,111690.0,0.2410226]
[1752090566650,1.35873692,111700.0,111690.0,0.062]
[1752090566951,1.35853692,111700.0,111690.0,0.2410226]
[1752090567146,1.62037859,111700.0,111690.0,0.2410226]
[1752090567347,0.0447603,111680.0,111660.0,0.01877979]
[1752090567540,1.41769199,111670.0,111650.0,0.2542394]
[1752090567748,1.33499438,111670.0,111660.0,0.1790707]
[1752090568042,1.40323858,111670.0,111660.0,0.01]
[1752090568249,1.70032637,111670.0,111660.0,0.01]
[1752090568447,0.08009968,111680.0,111670.0,0.1790547]
[1752090568647,1.35829828,111680.0,111670.0,0.2090547]
[1752090568843,1.35829828,111680.0,111670.0,0.03]
[1752090568844,1.25925059,111680.0,111670.0,0.03]
[1752090569040,1.72725216,111680.0,111670.0,0.03]
[1752090569644,1.72725216,111680.0,111670.0,0.032]
[1752090569850,1.72725216,111680.0,111670.0,0.012]
[1752090570050,1.36645216,111680.0,111670.0,0.012]
[1752090570448,1.36645216,111680.0,111670.0,0.015]
[1752090570652,1.72725216,111680.0,111670.0,0.015]
[1752090571049,1.36645216,111680.0,111670.0,0.015]
[1752090571354,1.36645216,111680.0,111670.0,0.045]
[1752090571355,1.72725216,111680.0,111670.0,0.045]
[1752090572149,1.2781986,111680.0,111670.0,0.045]
[1752090572549,1.38540017,111680.0,111670.0,0.045]
[1752090572948,1.2781986,111680.0,111670.0,0.045]
[1752090573149,1.38540017,111680.0,111670.0,0.045]
[1752090574158,1.70037783,111680.0,111670.0,0.045]
[1752090574651,1.62005059,111680.0,111670.0,0.005]
[1752090574852,1.70037783,111680.0,111670.0,0.005]
[1752090575254,1.35700584,111680.0,111670.0,0.005]
[1752090575750,1.2766786,111680.0,111670.0,0.005]
[1752090576056,0.9158786,111680.0,111670.0,0.005]
[1752090576455,0.9158786,111680.0,111670.0,0.015]
[1752090577248,1.2766786,111680.0,111670.0,0.015]
[1752090577553,0.10380724,111680.0,111670.0,0.53590669]
[1752090577854,0.73668,111680.0,111670.0,0.5205547]
[1752090578149,0.02348,111690.0,111680.0,0.1790387]
[1752090578346,0.99566984,111690.0,111680.0,0.5329387]
[1752090578546,1.15616984,111690.0,111680.0,0.5329387]
[1752090578748,1.51696984,111690.0,111680.0,0.5329387]
[1752090578950,1.15616984,111690.0,111680.0,0.5329387]
[1752090579146,1.0758426,111690.0,111680.0,0.5349387]
[1752090579346,1.4366426,111690.0,111680.0,0.5349387]
[1752090579965,1.51672984,111690.0,111680.0,0.5649387]
[1752090580257,1.15592984,111690.0,111680.0,0.5649387]
[1752090580454,1.15592984,111690.0,111680.0,0.3859]
[1752090580655,1.15592984,111690.0,111680.0,0.5649387]
[1752090581051,1.15592984,111690.0,111680.0,0.3859]
[1752090581256,1.85793183,111690.0,111680.0,0.052]
[1752090581457,1.14533183,111690.0,111680.0,0.052]
[1752090581755,1.85769183,111690.0,111680.0,0.052]
[1752090581961,2.01919183,111690.0,111680.0,0.052]
[1752090582459,1.65839183,111690.0,111680.0,0.052]
[1752090582659,1.57806459,111690.0,111680.0,0.052]
[1752090583260,1.2362126,111690.0,111680.0,0.052]
[1752090583452,1.57806459,111690.0,111680.0,0.052]
[1752090583652,1.93886459,111690.0,111680.0,0.052]
[1752090584053,1.57806459,111690.0,111680.0,0.052]
[1752090584361,1.93886459,111690.0,111680.0,0.052]
[1752090584556,1.5970126,111690.0,111680.0,0.052]
[1752090584757,1.2353726,111690.0,111680.0,0.042]
[1752090584955,1.5961726,111690.0,111680.0,0.042]
[1752090585161,1.2353726,111690.0,111680.0,0.042]
[1752090586663,1.2353726,111690.0,111680.0,0.012]
[1752090586864,0.5238526,111690.0,111680.0,0.012]
[1752090587064,1.2348126,111690.0,111680.0,0.012]
[1752090587360,1.5956126,111690.0,111680.0,0.012]
[1752090587665,1.2348126,111690.0,111680.0,0.012]
[1752090588359,0.1790226,111690.0,111680.0,0.35385199]
[1752090588566,0.8896626,111690.0,111680.0,0.68275199]
[1752090588865,0.8896626,111690.0,111680.0,0.5199387]
[1752090589257,0.8895026,111690.0,111680.0,0.5199387]
[1752090589657,0.8895026,111690.0,111680.0,0.5699387]
[1752090589854,0.8895026,111690.0,111680.0,0.3909]
[1752090590068,0.4950616,111700.0,111680.0,0.3909]
[1752090590269,0.16982604,111710.0,111690.0,1.03745199]
[1752090590454,0.34882584,111710.0,111700.0,0.67665199]
[1752090590661,0.2684986,111710.0,111700.0,0.71665199]
[1752090590865,0.92639999,111710.0,111700.0,0.04]
[1752090591171,0.1790227,111690.0,111680.0,0.002]
[1752090591363,2.30187469,111690.0,111680.0,0.002]
[1752090591564,0.1790387,111680.0,111670.0,0.3348]
[1752090591764,0.5398387,111680.0,111670.0,0.3448]
[1752090591967,0.5398387,111680.0,111670.0,0.01]
[1752090591968,1.07192069,111680.0,111670.0,0.01]
[1752090592162,1.23492069,111680.0,111670.0,0.01]
[1752090592557,0.87412069,111680.0,111670.0,0.01]
[1752090592761,0.1790547,111670.0,111660.0,0.35351576]
[1752090592958,0.1790547,111670.0,111660.0,1.09616775]
[1752090592959,1.5986547,111670.0,111660.0,1.09616775]
[1752090593166,1.5986547,111670.0,111660.0,0.73536775]
[1752090593371,1.9594547,111670.0,111660.0,0.39351576]
[1752090593567,2.32413669,111670.0,111660.0,0.05871576]
[1752090593768,2.29093669,111670.0,111660.0,0.02471576]
[1752090593976,0.1790868,111650.0,111640.0,0.17279139]
[1752090594183,2.30081879,111650.0,111640.0,0.19279139]
[1752090594370,2.32364879,111650.0,111640.0,0.02179139]
[1752090594574,2.65124879,111650.0,111640.0,0.00179139]
[1752090594866,2.29044879,111650.0,111640.0,0.00179139]
[1752090595065,2.2865668,111650.0,111640.0,0.00179139]
[1752090595463,2.3093968,111650.0,111640.0,0.00179139]
[1752090595668,2.65124879,111650.0,111640.0,0.00179139]
[1752090595878,2.29044879,111650.0,111640.0,0.00179139]
[1752090596069,2.65224879,111650.0,111640.0,0.00179139]
[1752090596774,2.65224879,111650.0,111640.0,0.17519139]
[1752090597472,2.62941879,111650.0,111640.0,0.17519139]
[1752090597673,3.5248068,111650.0,111640.0,0.17519139]
[1752090597878,3.5476368,111650.0,111640.0,0.18519139]
[1752090598078,3.5476368,111650.0,111640.0,0.18719139]
[1752090598278,3.1868368,111650.0,111640.0,0.18719139]
[1752090599076,3.1868368,111650.0,111640.0,0.01379139]
[1752090599474,3.1868368,111650.0,111640.0,0.00379139]
[1752090599668,3.5476368,111650.0,111640.0,0.00379139]
[1752090599875,2.4777168,111650.0,111640.0,0.00379139]
[1752090600176,2.4777168,111650.0,111640.0,0.01379139]
[1752090600177,0.5076868,111650.0,111640.0,0.01379139]
[1752090600477,0.8913168,111650.0,111640.0,0.01379139]
[1752090600679,0.7092868,111650.0,111640.0,0.01379139]
[1752090600875,0.7092868,111650.0,111640.0,0.33349139]
[1752090601380,2.32212879,111650.0,111640.0,0.17639139]
[1752090601577,2.85452879,111650.0,111640.0,0.00379139]
[1752090601771,3.02492879,111650.0,111640.0,0.00379139]
[1752090602171,0.9057168,111650.0,111640.0,0.00379139]
[1752090602376,1.4205268,111650.0,111640.0,0.17639139]
[1752090602577,0.1800866,111650.0,111640.0,0.89155608]
[1752090602777,0.8881266,111650.0,111640.0,1.25235608]
[1752090602973,0.8881266,111650.0,111640.0,0.73140139]
[1752090603180,0.8881266,111650.0,111640.0,0.54970409]
[1752090603582,0.8881266,111650.0,111640.0,0.37060139]
[1752090603780,0.1800866,111650.0,111640.0,0.37060139]
[1752090603979,0.70876,111650.0,111640.0,0.54970419]
[1752090604178,0.8878468,111650.0,111640.0,0.54970419]
[1752090604386,0.70872,111650.0,111640.0,1.25235618]
[1752090604680,0.001,111650.0,111640.0,1.60235618]
[1752090604884,0.70868,111650.0,111640.0,1.28235618]
[1752090605077,0.70868,111650.0,111640.0,1.26984618]
[1752090605278,0.8877668,111650.0,111640.0,1.29235618]
[1752090605783,0.001,111650.0,111640.0,1.29235618]
[1752090606385,0.2238239,111670.0,111660.0,0.1790708]
[1752090606686,0.9311039,111670.0,111660.0,0.5575708]
[1752090606883,0.9310239,111670.0,111660.0,0.3785]
[1752090607385,0.9310239,111670.0,111660.0,0.5575708]
[1752090607682,0.9310239,111670.0,111660.0,0.5585708]
[1752090607683,0.9360239,111670.0,111660.0,0.5585708]
[1752090607886,0.2288239,111670.0,111660.0,0.3795]
[1752090608188,0.2288239,111670.0,111660.0,0.2067]
[1752090608189,1.30050589,111670.0,111660.0,0.2067]
[1752090608387,1.99770589,111670.0,111660.0,0.001]
[1752090608587,0.1790708,111660.0,111650.0,0.3253]
[1752090608780,0.1790708,111660.0,111650.0,0.15600965]
[1752090608980,0.1790708,111660.0,111650.0,0.14379909]
[1752090609380,0.8859508,111660.0,111650.0,0.34288589]
[1752090609682,0.1790708,111660.0,111650.0,0.69830788]
[1752090609987,0.8857108,111660.0,111650.0,1.14863058]
[1752090610183,0.70664,111660.0,111650.0,1.14863058]
[1752090610382,0.002,111670.0,111660.0,0.1790707]
[1752090610584,0.70652,111670.0,111660.0,0.88051779]
[1752090610787,0.34887704,111690.0,111670.0,0.1342849]
[1752090610981,0.30410754,111690.0,111680.0,0.36542199]
[1752090611178,0.2237745,111700.0,111690.0,0.1790226]
[1752090611385,0.30398839,111700.0,111690.0,0.55444459]
[1752090611578,0.78653389,111700.0,111690.0,0.91524459]
[1752090611984,0.96554049,111700.0,111690.0,0.55444459]
[1752090612186,0.1790066,111700.0,111690.0,0.71644459]
[1752090612387,0.8853266,111700.0,111690.0,0.72644459]
[1752090612583,0.1790066,111700.0,111690.0,1.08724459]
[1752090612793,1.58747769,111710.0,111700.0,0.1790066]
[1752090613087,0.1790066,111700.0,111690.0,0.94998349]
[1752090613293,0.1790066,111700.0,111690.0,0.05]
[1752090613294,0.96513766,111700.0,111690.0,0.05]
[1752090613489,0.1790227,111690.0,111680.0,0.3608]
[1752090613690,0.1790227,111690.0,111680.0,0.02]
[1752090613691,0.25923376,111690.0,111680.0,0.02]
[1752090613892,0.78947575,111690.0,111680.0,0.02]
[1752090614093,0.88146469,111690.0,111680.0,0.02]
[1752090614289,0.96169367,111690.0,111680.0,0.02]
[1752090614691,0.88146469,111690.0,111680.0,0.02]
[1752090614995,1.34946626,111690.0,111680.0,0.02]
[1752090615196,0.98866626,111690.0,111680.0,0.02]
[1752090615594,0.45152427,111690.0,111680.0,0.02]
[1752090615795,0.96470246,111690.0,111680.0,0.5834086]
[1752090615987,0.96470246,111690.0,111680.0,0.2426086]
[1752090616291,0.25926246,111690.0,111680.0,0.2426086]
[1752090616496,0.96458246,111690.0,111680.0,0.2426087]
[1752090616887,0.8893427,111690.0,111680.0,0.2336087]
[1752090617296,0.1840227,111690.0,111680.0,0.2336087]
[1752090617593,0.8891426,111690.0,111680.0,0.93626069]
[1752090618492,0.005,111690.0,111680.0,0.93626069]
[1752090618797,0.8891427,111690.0,111680.0,0.93626069]
[1752090619394,0.005,111690.0,111680.0,0.93626069]
[1752090619701,0.8887428,111690.0,111680.0,1.24626069]
[1752090620496,0.005,111690.0,111680.0,1.27626069]
[1752090620702,0.8886628,111690.0,111680.0,1.27626069]
[1752090620896,0.8885428,111690.0,111680.0,1.27626069]
[1752090621293,0.70952,111690.0,111680.0,1.27626069]
[1752090621500,0.8885428,111690.0,111680.0,1.27626069]
[1752090621695,0.005,111690.0,111680.0,1.27626069]
[1752090621904,0.005,111690.0,111680.0,1.44606069]
[1752090622492,0.8831668,111700.0,111690.0,0.3132832]
[1752090622796,0.8831268,111700.0,111690.0,0.89417]
[1752090622992,1.22497879,111700.0,111680.0,0.001]
[1752090623196,0.52087479,111690.0,111680.0,0.011]
[1752090623499,1.0433228,111690.0,111680.0,0.01]
[1752090623803,1.2071228,111690.0,111680.0,0.1890388]
[1752090624198,1.2071228,111690.0,111680.0,0.011]
[1752090624404,1.0433228,111690.0,111680.0,0.1718]
[1752090624604,1.0433228,111690.0,111680.0,0.3508388]
[1752090624801,0.8860228,111690.0,111680.0,0.3508388]
[1752090624996,0.8858628,111690.0,111680.0,0.7516388]
[1752090625195,0.70668,111690.0,111680.0,1.11706079]
[1752090625598,0.8857028,111690.0,111680.0,0.4144088]
[1752090626002,0.1820228,111690.0,111680.0,0.23537]
[1752090626200,0.8855028,111690.0,111680.0,0.3808388]
[1752090626400,1.0484028,111690.0,111680.0,0.3808388]
[1752090627497,0.86938,111690.0,111680.0,0.3808388]
[1752090627693,0.86938,111690.0,111680.0,0.7416388]
[1752090628294,0.003,111690.0,111680.0,1.28136079]
[1752090628498,0.70608,111690.0,111680.0,1.28136079]
[1752090628908,0.70608,111690.0,111680.0,1.58136079]
[1752090629393,0.003,111690.0,111680.0,1.58136079]
[1752090629599,0.70604,111690.0,111680.0,1.2395088]
[1752090629798,0.8850628,111690.0,111680.0,1.2795088]
[1752090630094,0.70588,111690.0,111680.0,1.2795088]
[1752090630298,0.70572,111690.0,111680.0,1.62136079]
[1752090630500,0.70568,111690.0,111680.0,1.62136079]
[1752090631405,0.70568,111690.0,111680.0,1.59136079]
[1752090631706,0.8847028,111690.0,111680.0,1.59136079]
[1752090632505,0.70532,111690.0,111680.0,1.59136079]
[1752090632904,0.8843428,111690.0,111680.0,1.59136079]
[1752090633107,0.70532,111690.0,111680.0,1.59136079]
[1752090633307,0.8843428,111690.0,111680.0,1.2495088]
[1752090633509,0.8843428,111690.0,111680.0,1.59136079]
[1752090634606,0.8843428,111690.0,111680.0,1.2495088]
[1752090634807,0.8843428,111690.0,111680.0,1.60136079]
[1752090635002,0.8843428,111690.0,111680.0,1.2359388]
[1752090635208,1.0485428,111690.0,111680.0,0.5751388]
[1752090635705,1.0485428,111690.0,111680.0,1.27779079]
[1752090636106,1.0485428,111690.0,111680.0,1.30136079]
[1752090636310,0.1820228,111690.0,111680.0,0.9695088]
[1752090636513,0.1820228,111690.0,111680.0,1.31136079]
[1752090636814,1.22551479,111690.0,111680.0,0.072]
[1752090637111,1.55411479,111690.0,111680.0,0.072]
[1752090637310,1.2122628,111690.0,111680.0,0.072]
[1752090638212,1.2353528,111690.0,111680.0,0.072]
[1752090638410,1.2353528,111690.0,111680.0,0.2510389]
[1752090638615,1.2122628,111690.0,111680.0,0.2510389]
[1752090638805,1.2122628,111690.0,111680.0,0.072]
[1752090639313,0.5106228,111690.0,111680.0,0.072]
[1752090639506,1.2117828,111690.0,111680.0,0.2510389]
[1752090640016,0.5106228,111690.0,111680.0,0.072]
[1752090640208,1.2274528,111690.0,111680.0,0.2210389]
[1752090640602,1.2274528,111690.0,111680.0,0.2372389]
[1752090640816,1.2274528,111690.0,111680.0,0.2010389]
[1752090641010,1.2274528,111690.0,111680.0,0.022]
[1752090641214,0.5264528,111690.0,111680.0,0.022]
[1752090641617,1.2499828,111690.0,111680.0,0.022]
[1752090641912,1.2499828,111690.0,111680.0,0.052]
[1752090642114,1.2272128,111690.0,111680.0,0.052]
[1752090642318,1.2272128,111690.0,111680.0,0.2110389]
[1752090642512,0.34743,111690.0,111680.0,0.5718389]
[1752090642713,0.8984928,111690.0,111680.0,0.95383089]
[1752090642918,0.8826628,111690.0,111680.0,0.9567789]
[1752090643218,0.8984928,111690.0,111680.0,1.29863089]
[1752090643421,0.8984928,111690.0,111680.0,0.9567789]
[1752090643608,0.003,111690.0,111680.0,0.9567789]
[1752090643809,0.003,111690.0,111680.0,1.26863089]
[1752090644014,0.003,111690.0,111680.0,1.61863089]
[1752090644517,0.1978528,111690.0,111680.0,1.2767789]
[1752090644718,0.003,111690.0,111680.0,1.34863089]
[1752090644919,0.1820228,111690.0,111680.0,1.34863089]
[1752090645418,0.1820228,111690.0,111680.0,1.32863089]
[1752090645617,0.1820228,111690.0,111680.0,1.63863089]
[1752090645818,0.1820228,111690.0,111680.0,1.2967789]
[1752090646120,0.8823028,111690.0,111680.0,1.63863089]
[1752090647019,0.8823028,111690.0,111680.0,1.65224345]
[1752090647214,0.8981328,111690.0,111680.0,1.65224345]
[1752090647719,1.23998479,111690.0,111680.0,0.3928]
[1752090647911,1.58385479,111690.0,111680.0,0.032]
[1752090648710,0.1820228,111690.0,111680.0,0.06183665]
[1752090648912,0.12698606,111720.0,111700.0,0.0894999]
[1752090649116,0.1789908,111710.0,111700.0,0.08]
[1752090649330,0.1948208,111710.0,111700.0,0.2991468]
[1752090649622,0.5977788,111720.0,111710.0,0.1789908]
[1752090649811,0.5977788,111720.0,111710.0,0.04]
[1752090649812,0.6136088,111720.0,111710.0,0.04]
[1752090650016,0.6136088,111720.0,111710.0,0.0562]
[1752090650317,0.6136088,111720.0,111710.0,0.80641902]
[1752090650318,1.0554248,111720.0,111710.0,0.80641902]
[1752090650521,1.0554248,111720.0,111710.0,0.2282]
[1752090650917,1.2234248,111720.0,111710.0,0.0662]
[1752090651118,0.5251048,111720.0,111710.0,0.0162]
[1752090651320,1.58884679,111720.0,111710.0,0.04]
[1752090651514,0.1789908,111710.0,111700.0,0.5418068]
[1752090651728,0.5241208,111710.0,111700.0,0.5518068]
[1752090652026,0.5241208,111710.0,111700.0,0.56343318]
[1752090652222,0.5241208,111710.0,111700.0,0.92148488]
[1752090652613,0.5241208,111710.0,111700.0,0.56343289]
[1752090652817,0.5241208,111710.0,111700.0,0.3708]
[1752090653018,0.88874279,111710.0,111700.0,0.3728]
[1752090653224,1.24954279,111710.0,111700.0,0.012]
[1752090653425,0.9076908,111710.0,111700.0,0.012]
[1752090653624,1.24954279,111710.0,111700.0,0.012]
[1752090653922,0.5468908,111710.0,111700.0,0.012]
[1752090654724,0.5241208,111710.0,111700.0,0.2010068]
[1752090655022,1.2226008,111710.0,111700.0,0.0382]
[1752090655223,0.8849208,111710.0,111700.0,0.022]
[1752090655428,0.5241208,111710.0,111700.0,0.025]
[1752090655729,1.2452908,111710.0,111700.0,0.025]
[1752090656230,1.2452908,111710.0,111700.0,0.045]
[1752090656525,1.2452908,111710.0,111700.0,0.042]
[1752090656715,1.2452908,111710.0,111700.0,0.043]
[1752090657923,1.2452908,111710.0,111700.0,0.042]
[1752090658928,1.6060908,111710.0,111700.0,0.342]
[1752090659124,1.2452908,111710.0,111700.0,0.342]
[1752090659322,1.58714279,111710.0,111700.0,0.012]
[1752090659626,1.2452908,111710.0,111700.0,0.012]
[1752090660623,1.66738255,111710.0,111700.0,0.012]
[1752090660822,2.45722255,111710.0,111700.0,0.012]
[1752090661030,2.45722255,111710.0,111700.0,0.002]
[1752090661331,2.20722255,111710.0,111700.0,0.002]
[1752090661724,1.86537056,111710.0,111700.0,0.002]
[1752090661925,1.86537056,111710.0,111700.0,0.012]
[1752090661926,2.20722255,111710.0,111700.0,0.012]
[1752090662128,2.12698279,111710.0,111700.0,0.011]
[1752090662329,2.12798279,111710.0,111700.0,0.01]
[1752090662525,1.0877308,111710.0,111700.0,0.01]
[1752090662726,1.7849308,111710.0,111700.0,0.01]
[1752090662930,1.86517056,111710.0,111700.0,0.01]
[1752090663323,1.16797056,111710.0,111700.0,0.01]
[1752090663524,1.28657056,111710.0,111700.0,0.01]
[1752090663725,0.1790069,111700.0,111690.0,0.8783174]
[1752090663930,0.8918369,111700.0,111690.0,0.9545174]
[1752090664631,0.8760069,111700.0,111690.0,1.29636939]
[1752090664932,0.1790069,111700.0,111690.0,1.29636939]
[1752090665231,0.8758469,111700.0,111690.0,1.63030149]
[1752090665431,0.71267,111700.0,111690.0,1.32130149]
[1752090665631,0.8916769,111700.0,111690.0,0.9794495]
[1752090665942,0.8916769,111700.0,111690.0,0.9555095]
[1752090666228,0.8916369,111700.0,111690.0,0.8075]
[1752090666434,0.1948369,111700.0,111690.0,0.4467]
[1752090666632,1.0586169,111700.0,111690.0,0.4467]
[1752090667131,1.0427869,111700.0,111690.0,0.3867]
[1752090668036,1.04402224,111700.0,111690.0,0.3887]
[1752090668535,1.04402224,111700.0,111690.0,0.034]
[1752090668736,1.54757423,111700.0,111690.0,0.024]
[1752090668929,1.20572224,111700.0,111690.0,0.024]
[1752090669836,0.50904224,111700.0,111690.0,0.0706]
[1752090670039,0.19548224,111700.0,111690.0,0.4314]
[1752090670227,0.19548224,111700.0,111690.0,0.756]
[1752090670534,0.19548224,111700.0,111690.0,0.3952]
[1752090670734,0.35838224,111700.0,111690.0,0.3952]
[1752090671238,0.35838224,111700.0,111690.0,0.3552]
[1752090671736,0.35838224,111700.0,111690.0,0.716]
[1752090672938,0.19548224,111700.0,111690.0,0.895023]
[1752090673337,0.19548224,111700.0,111690.0,1.23687499]
[1752090673533,0.18024224,111700.0,111690.0,1.24340499]
[1752090673836,0.21448936,111710.0,111700.0,0.1789961]
[1752090673837,0.1789909,111710.0,111700.0,0.1789961]
[1752090674028,0.1789909,111710.0,111700.0,0.7591]
[1752090674229,0.1942309,111710.0,111700.0,0.7591]
[1752090674429,0.1942309,111710.0,111700.0,0.3983]
[1752090674828,0.1942309,111710.0,111700.0,0.3883]
[1752090674829,0.1789909,111710.0,111700.0,0.3883]
[1752090675030,0.9445909,111710.0,111700.0,0.5673069]
[1752090675229,0.9474709,111710.0,111700.0,0.7325]
[1752090675434,0.9474709,111710.0,111700.0,0.7501]
[1752090675629,0.9637909,111710.0,111700.0,0.7335]
[1752090675831,0.9637909,111710.0,111700.0,0.7501]
[1752090676039,0.9637909,111710.0,111700.0,0.7335]
[1752090676236,1.30564289,111710.0,111700.0,0.0376]
[1752090676538,1.5031809,111710.0,111700.0,0.001]
[1752090676835,1.07547289,111710.0,111700.0,0.001]
[1752090677140,1.0854609,111710.0,111700.0,0.011]